fUSD/lending_fUSD_20250120
["ID","MTS","AMOUNT","RATE_DAILY","PERIOD"]
[349747631,1737412245153,-500.0,0.00021973,2]
[349747633,1737412245164,-500.0,0.00021973,2]
[349747635,1737412245174,-496.747323,0.00021973,2]
[349747637,1737412245186,-500.0,0.00021973,2]
[349747639,1737412245195,-598.1,0.00021973,2]
[349747641,1737412245204,-500.0,0.00021973,2]
[349747643,1737412245214,-500.0,0.00021973,2]
[349747645,1737412245224,-1013.648402,0.00021973,2]
[349747647,1737412245233,-993.73,0.00021973,2]
[349747649,1737412245243,-500.0,0.00021973,2]
[349747651,1737412245252,-156.34804,0.00021973,2]
[349747653,1737412245261,-927.02,0.00021973,2]
[349747655,1737412245271,-157.726337,0.00021973,2]
[349747657,1737412245280,-1273.1,0.00021973,2]
[349747659,1737412245289,-500.0,0.00021973,2]
[349747661,1737412245299,-592.552042,0.00021973,2]
[349747663,1737412245308,-1033.31,0.00021973,2]
[349747665,1737412245318,-2351.44,0.00021973,2]
[349747667,1737412245328,-2013.15,0.00021973,2]
[349747669,1737412245338,-2093.63,0.00021973,2]
[349747671,1737412245346,-948.761277,0.00021973,2]
[349747673,1737412245355,-1061.56,0.00021973,2]
[349747675,1737412245365,-500.0,0.00021973,2]
[349747677,1737412245375,-155.929331,0.00021973,2]
[349747679,1737412245384,-845.7,0.00021973,2]
[349747680,1737412245395,-500.0,0.00021973,2]
[349747682,1737412245404,-836.174013,0.00021973,2]
[349747684,1737412245414,-2602.66,0.00021973,2]
[349747686,1737412245423,-1239.68,0.00021973,2]
[349747688,1737412245434,-485.494998,0.00021973,2]
[349747690,1737412245443,-7859.26474112,0.00021974,2]
[349747693,1737412245453,-5000.0,0.00021974,2]
[349747694,1737412245462,-150.0,0.00021976,4]
[349747697,1737412245472,-166.0,0.00021978,2]
[349747698,1737412245481,-150.0,0.00021979,4]
[349747701,1737412245491,-150.0,0.00021982,4]
[349747703,1737412245500,-166.0,0.00021985,2]
[349747705,1737412245510,-150.0,0.00021985,4]
[349747707,1737412245519,-160.0143305,0.00021985,2]
[349747708,1737412245528,-160.0143305,0.00021985,2]
[349747710,1737412245538,-160.0143305,0.00021985,2]
[349747713,1737412245547,-160.0143305,0.00021985,2]
[349747714,1737412245556,-160.0143305,0.00021985,2]
[349747716,1737412245566,-1501.955146,0.00021985,2]
[349747718,1737412245575,-1168.5435447,0.00021985,2]
[349747720,1737412245584,-835.1319435,0.00021985,2]
[349747722,1737412245594,-501.7203422,0.00021985,2]
[349747724,1737412245603,-168.308741,0.00021985,2]
[349747726,1737412245612,-720.0919905,0.00021985,2]
[349747728,1737412245622,-720.0919905,0.00021985,2]
[349747730,1737412245631,-720.0919905,0.00021985,2]
[349747732,1737412245640,-720.0919905,0.00021985,2]
[349747734,1737412245650,-720.0919905,0.00021985,2]
[349747736,1737412245659,-1621.1326971,0.00021985,2]
[349747738,1737412245668,-1261.6118374,0.00021985,2]
[349747740,1737412245677,-902.0909776,0.00021985,2]
[349747742,1737412245686,-542.5701179,0.00021985,2]
[349747744,1737412245695,-183.0492581,0.00021985,2]
[349747746,1737412245704,-172.0,0.00021987,2]
[349747748,1737412245713,-150.0,0.00021988,4]
[349747750,1737412245722,-105231.68292286,0.0002199,14]
[349747752,1737412245732,-150.0,0.00021991,4]
[349747753,1737412245741,-300.0,0.00021992,2]
[349747754,1737412245750,-150.0,0.00021994,4]
[349747755,1737412245759,-150.0,0.00021997,4]
[349747756,1737412245768,-150.0,0.00021999,2]
[349747757,1737412245777,-2000.0,0.00021999,2]
[349747758,1737412245787,-2000.0,0.00021999,2]
[349747759,1737412245796,-2000.0,0.00021999,2]
[349747760,1737412245805,-2000.0,0.00021999,2]
[349747761,1737412245816,-500.0,0.00021999,3]
[349747763,1737412245825,-500.0,0.00021999,2]
[349747765,1737412245834,-500.0,0.00021999,2]
[349747767,1737412245843,-500.0,0.00021999,2]
[349747769,1737412245853,-500.0,0.00021999,2]
[349747771,1737412245863,-500.0,0.00021999,2]
[349747773,1737412245872,-500.0,0.00021999,2]
[349747775,1737412245881,-266.88908536,0.00021999,2]
[349747777,1737412245890,-500.0,0.00021999,2]
[349747779,1737412245900,-500.0,0.00021999,2]
[349747781,1737412245910,-500.0,0.00021999,2]
[349747783,1737412245919,-500.0,0.00021999,2]
[349747785,1737412245928,-500.0,0.00021999,2]
[349747787,1737412245938,-506.99809768,0.00021999,2]
[349747790,1737412245947,-500.0,0.00021999,2]
[349747792,1737412245956,-500.0,0.00021999,2]
[349747794,1737412245965,-609.47,0.00021999,2]
[349747796,1737412245974,-500.0,0.00021999,2]
[349747798,1737412245984,-500.0,0.00021999,2]
[349747800,1737412245993,-628.48,0.00021999,2]
[349747802,1737412246002,-215.04445155,0.00021999,2]
[349747804,1737412246011,-500.0,0.00021999,2]
[349747806,1737412246020,-500.0,0.00021999,2]
[349747808,1737412246029,-500.0,0.00021999,2]
[349747810,1737412246038,-500.0,0.00021999,2]
[349747812,1737412246047,-500.0,0.00021999,2]
[349747814,1737412246056,-500.0,0.00021999,2]
[349747816,1737412246065,-500.0,0.00021999,2]
[349747818,1737412246074,-500.0,0.00021999,2]
[349747819,1737412246083,-500.0,0.00021999,2]
[349747821,1737412246092,-500.0,0.00021999,2]
[349747823,1737412246101,-500.0,0.00021999,2]
[349747825,1737412246111,-500.0,0.00021999,2]
[349747827,1737412246120,-410.85810347,0.00021999,2]
[349747829,1737412246129,-500.0,0.00021999,2]
[349747832,1737412246148,-500.0,0.00021999,2]
[349747834,1737412246157,-500.0,0.00021999,2]
[349747836,1737412246166,-160.0143305,0.00021999,2]
[349747838,1737412246176,-500.0,0.00021999,2]
[349747840,1737412246185,-1835.3667472,0.00021999,2]
[349747842,1737412246195,-500.0,0.00021999,2]
[349747844,1737412246205,-500.0,0.00021999,2]
[349747846,1737412246214,-500.0,0.00021999,2]
[349747848,1737412246223,-500.0,0.00021999,2]
[349747850,1737412246232,-511.3,0.00021999,2]
[349747852,1737412246241,-500.0,0.00021999,2]
[349747854,1737412246251,-354.58010726,0.00021999,2]
[349747856,1737412246260,-540.72,0.00021999,2]
[349747858,1737412246269,-500.0,0.00021999,2]
[349747860,1737412246278,-539.32,0.00021999,2]
[349747862,1737412246288,-720.0919905,0.00021999,2]
[349747864,1737412246297,-500.0,0.00021999,2]
[349747866,1737412246306,-2000.0,0.00021999,2]
[349747868,1737412246316,-500.0,0.00021999,2]
[349747870,1737412246326,-500.0,0.00021999,2]
[349747872,1737412246336,-500.0,0.00021999,2]
[349747874,1737412246346,-558.69,0.00021999,2]
[349747876,1737412246355,-500.0,0.00021999,2]
[349747878,1737412246364,-500.0,0.00021999,2]
[349747880,1737412246374,-500.0,0.00021999,2]
[349747882,1737412246383,-500.0,0.00021999,2]
[349747884,1737412246392,-1113.49,0.00021999,2]
[349747886,1737412246402,-500.0,0.00021999,2]
[349747888,1737412246411,-500.0,0.00021999,2]
[349747890,1737412246420,-782.39,0.00021999,2]
[349747892,1737412246429,-1018.43,0.00021999,2]
[349747894,1737412246438,-500.0,0.00021999,2]
[349747896,1737412246447,-500.0,0.00021999,2]
[349747898,1737412246457,-1420.4,0.00021999,2]
[349747900,1737412246466,-507.82,0.00021999,2]
[349747902,1737412246475,-1980.6535569,0.00021999,2]
[349747904,1737412246484,-511.91,0.00021999,2]
[349747906,1737412246493,-357.52376095,0.00021999,2]
[349747908,1737412246502,-1223.03,0.00021999,2]
[349747910,1737412246511,-406.10589291,0.00021999,2]
[349747912,1737412246520,-500.0,0.00021999,2]
[349747914,1737412246530,-500.0,0.00021999,2]
[349747916,1737412246539,-2597.98,0.00021999,2]
[349747918,1737412246548,-793.66,0.00021999,2]
[349747920,1737412246558,-500.0,0.00021999,2]
[349747921,1737412246567,-500.0,0.00021999,2]
[349747923,1737412246577,-500.0,0.00021999,2]
[349747925,1737412246586,-500.0,0.00021999,2]
[349747927,1737412246595,-1383.52943055,0.00021999,2]
[349747930,1737412246605,-500.0,0.00021999,2]
[349747931,1737412246614,-2001.45,0.00021999,2]
[349747933,1737412246623,-500.0,0.00021999,2]
[349747935,1737412246632,-500.0,0.00021999,2]
[349747937,1737412246642,-500.0,0.00021999,2]
[349747940,1737412246652,-500.0,0.00021999,2]
[349747942,1737412246662,-500.0,0.00021999,2]
[349747944,1737412246671,-500.0,0.00021999,2]
[349747946,1737412246680,-500.0,0.00021999,2]
[349747948,1737412246690,-892.07,0.00021999,2]
[349747950,1737412246699,-500.0,0.00021999,2]
[349747952,1737412246709,-500.0,0.00021999,2]
[349747954,1737412246718,-500.0,0.00021999,2]
[349747956,1737412246728,-500.0,0.00021999,2]
[349747958,1737412246737,-500.0,0.00021999,2]
[349747960,1737412246747,-504.93362862,0.00021999,2]
[349747962,1737412246756,-1485.8,0.00021999,2]
[349747964,1737412246764,-726.42,0.00021999,2]
[349747966,1737412246773,-500.0,0.00021999,2]
[349747968,1737412246783,-500.0,0.00021999,2]
[349747970,1737412246792,-2991.74,0.00021999,2]
[349747971,1737412246802,-500.0,0.00021999,2]
[349747973,1737412246811,-1697.28,0.00021999,2]
[349747975,1737412246823,-500.0,0.00021999,2]
[349747977,1737412246832,-500.0,0.00021999,2]
[349747979,1737412246842,-500.0,0.00021999,2]
[349747981,1737412246851,-500.0,0.00021999,2]
[349747983,1737412246861,-1247.92,0.00021999,2]
[349747985,1737412246871,-500.0,0.00021999,2]
[349747987,1737412246880,-604.3,0.00021999,2]
[349747989,1737412246892,-500.0,0.00021999,2]
[349747992,1737412246902,-500.0,0.00021999,2]
[349747994,1737412246911,-676.43,0.00021999,2]
[349747996,1737412246920,-500.0,0.00021999,2]
[349747998,1737412246930,-500.0,0.00021999,2]
[349747999,1737412246939,-937.96,0.00021999,2]
[349748001,1737412246950,-500.0,0.00021999,2]
[349748003,1737412246959,-500.0,0.00021999,2]
[349748005,1737412246968,-500.0,0.00021999,2]
[349748008,1737412246979,-500.0,0.00021999,2]
[349748010,1737412246989,-500.0,0.00021999,2]
[349748011,1737412246998,-1067.73,0.00021999,2]
[349748012,1737412247007,-500.0,0.00021999,2]
[349748013,1737412247016,-500.0,0.00021999,2]
[349748014,1737412247025,-1253.75,0.00021999,2]
[349748015,1737412247034,-500.0,0.00021999,2]
[349748016,1737412247043,-500.0,0.00021999,2]
[349748017,1737412247051,-500.0,0.00021999,2]
[349748018,1737412247060,-500.0,0.00021999,2]
[349748019,1737412247069,-500.0,0.00021999,2]
[349748021,1737412247079,-275.1884437,0.00021999,2]
[349748023,1737412247088,-500.0,0.00021999,2]
[349748025,1737412247097,-500.0,0.00021999,2]
[349748027,1737412247106,-1119.77,0.00021999,2]
[349748029,1737412247115,-500.0,0.00021999,2]
[349748031,1737412247124,-500.0,0.00021999,2]
[349748033,1737412247133,-500.0,0.00021999,2]
[349748035,1737412247143,-2744.46,0.00021999,2]
[349748037,1737412247152,-500.0,0.00021999,2]
[349748039,1737412247161,-500.0,0.00021999,2]
[349748041,1737412247170,-500.0,0.00021999,2]
[349748043,1737412247179,-1000.0,0.00021999,2]
[349748045,1737412247188,-680.08,0.00021999,2]
[349748047,1737412247198,-500.0,0.00021999,2]
[349748049,1737412247207,-1119.28,0.00021999,2]
[349748051,1737412247216,-500.0,0.00021999,2]
[349748053,1737412247225,-500.0,0.00021999,2]
[349748055,1737412247234,-212.92632302,0.00021999,2]
[349748057,1737412247243,-500.0,0.00021999,2]
[349748059,1737412247252,-577.46116696,0.00021999,2]
[349748061,1737412247262,-604.74,0.00021999,2]
[349748063,1737412247272,-500.0,0.00021999,2]
[349748065,1737412247281,-500.0,0.00021999,2]
[349748066,1737412247291,-500.0,0.00021999,2]
[349748069,1737412247300,-1315.39,0.00021999,2]
[349748071,1737412247309,-500.0,0.00021999,2]
[349748073,1737412247318,-500.0,0.00021999,2]
[349748074,1737412247329,-500.0,0.00021999,2]
[349748076,1737412247338,-500.0,0.00021999,2]
[349748078,1737412247347,-500.0,0.00021999,2]
[349748080,1737412247356,-500.0,0.00021999,2]
[349748082,1737412247365,-1607.0,0.00021999,2]
[349748084,1737412247375,-1794835.05906528,0.00022,2]
[349748086,1737412247384,-1591083.29714443,0.00022,2]
[349748088,1737412247394,-1403468.36446351,0.00022,2]
[349748090,1737412247404,-5328393.89701793,0.00022,2]
[349748127,1737412247737,-435.68171804,0.00022,2]
[349748129,1737412247748,-38851.90025894,0.00022,2]
[349748139,1737412247835,-1029.54068,0.00021095,2]
[349748141,1737412247846,-486.68,0.00021095,2]
[349748143,1737412247858,-422.97571748,0.00021095,2]
[349748175,1737412248173,-500.0,0.00019178,2]
[349748176,1737412248182,-500.0,0.00019178,2]
[349748177,1737412248191,-500.0,0.00019178,2]
[349748178,1737412248200,-500.0,0.00019452,2]
[349748179,1737412248210,-408.03414163,0.00019452,2]
[349748180,1737412248221,-91.96585837,0.00019452,2]
[349748181,1737412248230,-500.0,0.00019452,2]
[349748183,1737412248239,-500.0,0.00019726,2]
[349748185,1737412248249,-500.0,0.00019726,2]
[349748187,1737412248258,-500.0,0.00019726,2]
[349748189,1737412248267,-500.0,0.0002,2]
[349748191,1737412248276,-500.0,0.0002,2]
[349748193,1737412248285,-500.0,0.00020273,2]
[349748195,1737412248294,-500.0,0.00020273,2]
[349748197,1737412248303,-511.72,0.00020547,2]
[349748199,1737412248312,-500.0,0.00020547,2]
[349748201,1737412248321,-1057.96360252,0.00021095,2]
[349748203,1737412248331,-2997.16,0.00021369,2]
[349748205,1737412248340,-2997.16,0.00021643,2]
[349748207,1737412248349,-700.0,0.000218,7]
[349748209,1737412248358,-2997.16,0.00021917,2]
[349748211,1737412248368,-1229.76,0.00021999,2]
[349748213,1737412248377,-500.0,0.00021999,2]
[349748215,1737412248386,-123485.11053911,0.00022,2]
[349748217,1737412248402,-422.25836631,0.00022,2]
[349748219,1737412248414,-4077.30996224,0.00022,2]
[349748222,1737412248426,-5711.12506518,0.00022,2]
[349748242,1737412248616,-500.0,0.00019178,2]
[349748245,1737412248626,-500.0,0.00019178,2]
[349748246,1737412248635,-500.0,0.00020821,2]
[349748248,1737412248645,-500.0,0.00021095,2]
[349748251,1737412248654,-500.0,0.00021369,2]
[349748253,1737412248664,-500.0,0.00021643,2]
[349748255,1737412248674,-500.0,0.00021917,2]
[349748257,1737412248683,-378.234892,0.00021973,2]
[349748259,1737412248693,-500.0,0.00021999,2]
[349748260,1737412248702,-3688.39367555,0.00022,2]
[349748279,1737412248876,-500.0,0.00019178,2]
[349748282,1737412248889,-500.0,0.00019452,2]
[349748284,1737412248906,-500.0,0.00019452,2]
[349748287,1737412248919,-375.33944656,0.00019726,2]
[349748289,1737412248936,-124.66055344,0.00019726,2]
[349748292,1737412248954,-500.0,0.00019726,2]
[349748294,1737412248966,-500.0,0.0002,2]
[349748297,1737412248978,-1105.0,0.0002095,2]
[349748299,1737412248989,-49270.33944657,0.00022,2]
[349748308,1737412249068,-3273.41025598,0.00022,2]
[349748311,1737412249084,-1285.79556114,0.00022,2]
[349748606,1737412280506,220.66,0.00010137,2]
[349748613,1737412855797,150.0,0.00016658,30]
[349748622,1737413432380,-400.35865647,0.0001289,2]
[349748623,1737413432391,-2173.6962591,0.0001289,2]
[349748624,1737413432401,-1044.178653,0.00013302,2]
[349748625,1737413432410,-617.695667,0.00014003,2]
[349748626,1737413432420,-1543.55,0.00014168,2]
[349748627,1737413432429,-736.96261564,0.0001453,2]
[349748628,1737413432438,-250.0,0.0001453,2]
[349748629,1737413432447,-339.21711402,0.00014538,2]
[349748630,1737413432456,-173.81,0.00014577,2]
[349748631,1737413432465,-535.88,0.00014595,2]
[349748632,1737413432474,-12209.6473947,0.00014612,2]
[349748633,1737413432485,-11690.3526053,0.00014612,2]
[349748634,1737413432494,-446.11353728,0.00014692,2]
[349748635,1737413432503,-1000.0,0.00014719,2]
[349748636,1737413432511,-200.0,0.00014817,2]
[349748637,1737413432521,-173.47,0.00015018,2]
[349748638,1737413432529,-2178.91,0.00015293,2]
[349748639,1737413432538,-341.89,0.00016159,2]
[349748640,1737413432548,-302.46,0.0001616,2]
[349748641,1737413432557,-173.47,0.00016257,2]
[349748642,1737413432566,-300.0,0.00016276,2]
[349748643,1737413432575,-250.0,0.00016291,2]
[349748644,1737413432585,-250.0,0.00016316,2]
[349748645,1737413432594,-1543.55,0.00016432,2]
[349748646,1737413432603,-1000.0,0.00016559,2]
[349748647,1737413432612,-785.2,0.00016658,30]
[349748648,1737413432621,-220.66,0.00016813,2]
[349748649,1737413432630,-302.46,0.00016968,2]
[349748650,1737413432639,-173.47,0.00017496,2]
[349748651,1737413432648,-300.0,0.00017591,2]
[349748652,1737413432658,-302.46,0.00017776,2]
[349748653,1737413432667,-200.0,0.00018082,2]
[349748654,1737413432678,-515.31,0.00018082,2]
[349748655,1737413432687,-500.0,0.00018164,2]
[349748656,1737413432697,-341.89,0.00018179,2]
[349748657,1737413432706,-1000.0,0.00018399,2]
[349748658,1737413432715,-2705.16285746,0.00018422,2]
[349748659,1737413432736,-9279.83714254,0.00018422,2]
[349748660,1737413432745,-302.46,0.00018584,2]
[349748661,1737413432755,-681.767,0.00018595,2]
[349748662,1737413432764,-1543.55,0.00018696,2]
[349748663,1737413432774,-515.31,0.00018751,2]
[349748664,1737413432783,-1886.0,0.000189,2]
[349748666,1737413432793,-300.0,0.0001896,2]
[349748668,1737413432802,-1668.37996026,0.00019077,2]
[349748670,1737413432811,-11426.84722735,0.00019078,2]
[349748675,1737413432867,-20454.18279975,0.00019078,2]
[349748676,1737413432877,-189.2216877,0.00019078,2]
[349748677,1737413432887,-22308.13201168,0.00019078,2]
[349748678,1737413432896,-788.945,0.00019078,2]
[349748680,1737413432905,-303.8815,0.00019078,2]
[349748681,1737413432914,-17329.879,0.00019078,2]
[349748682,1737413432923,-1489.1836,0.00019078,2]
[349748683,1737413432932,-1208.6144,0.00019078,2]
[349748684,1737413432941,-5000.0,0.00019078,2]
[349748685,1737413432950,-1000.0,0.00019078,2]
[349748686,1737413432959,-500.941152,0.00019173,2]
[349748687,1737413433112,-500.0,0.00019173,2]
[349748688,1737413433122,-152.00994595,0.00019173,2]
[349748689,1737413433132,-151.98920153,0.00019173,2]
[349748690,1737413433141,-296.17631208,0.00019178,2]
[349748691,1737413433150,-500.0,0.00019178,2]
[349748692,1737413433159,-505.26287651,0.00019178,2]
[349748693,1737413433170,-500.0,0.00019178,2]
[349748694,1737413433181,-500.0,0.00019178,2]
[349748695,1737413433191,-500.0,0.00019178,2]
[349748696,1737413433200,-500.0,0.00019178,2]
[349748697,1737413433210,-500.0,0.00019178,2]
[349748698,1737413433219,-500.0,0.00019178,2]
[349748699,1737413433229,-500.0,0.00019178,2]
[349748700,1737413433238,-166.12029828,0.00019178,2]
[349748701,1737413433249,-500.0,0.00019178,2]
[349748702,1737413433259,-500.0,0.00019178,2]
[349748703,1737413433268,-508.17684468,0.00019178,2]
[349748704,1737413433277,-500.0,0.00019178,2]
[349748705,1737413433287,-500.0,0.00019178,2]
[349748706,1737413433296,-500.0,0.00019178,2]
[349748707,1737413433306,-500.0,0.00019178,2]
[349748708,1737413433316,-500.0,0.00019178,2]
[349748709,1737413433325,-502.89553674,0.00019178,2]
[349748710,1737413433334,-500.0,0.00019178,2]
[349748711,1737413433344,-500.0,0.00019178,2]
[349748712,1737413433353,-501.36996233,0.00019178,2]
[349748713,1737413433362,-500.0,0.00019178,2]
[349748714,1737413433372,-500.0,0.00019178,2]
[349748715,1737413433382,-500.0,0.00019178,2]
[349748716,1737413433393,-500.0,0.00019178,2]
[349748717,1737413433403,-500.0,0.00019178,2]
[349748718,1737413433413,-500.0,0.00019178,2]
[349748719,1737413433422,-500.0,0.00019178,2]
[349748720,1737413433432,-500.0,0.00019178,2]
[349748721,1737413433442,-500.0,0.00019178,2]
[349748722,1737413433452,-500.0,0.00019178,2]
[349748723,1737413433461,-500.0,0.00019178,2]
[349748724,1737413433471,-508.4909086,0.00019178,2]
[349748725,1737413433480,-500.0,0.00019178,2]
[349748726,1737413433491,-500.0,0.00019178,2]
[349748727,1737413433500,-500.0,0.00019178,2]
[349748728,1737413433509,-500.0,0.00019178,2]
[349748729,1737413433520,-523.0646193,0.00019178,2]
[349748730,1737413433529,-500.0,0.00019178,2]
[349748731,1737413433539,-500.0,0.00019178,2]
[349748732,1737413433548,-500.0,0.00019178,2]
[349748733,1737413433558,-502.65664815,0.00019178,2]
[349748734,1737413433568,-544.3,0.00019178,2]
[349748735,1737413433577,-500.0,0.00019178,2]
[349748736,1737413433587,-500.0,0.00019178,2]
[349748737,1737413433596,-522.48895449,0.00019178,2]
[349748738,1737413433605,-500.0,0.00019178,2]
[349748739,1737413433615,-500.0,0.00019178,2]
[349748740,1737413433624,-500.0,0.00019178,2]
[349748741,1737413433633,-500.0,0.00019178,2]
[349748742,1737413433643,-511.08266642,0.00019178,2]
[349748743,1737413433652,-500.0,0.00019178,2]
[349748744,1737413433662,-500.0,0.00019178,2]
[349748745,1737413433672,-508.21996064,0.00019178,2]
[349748746,1737413433681,-500.0,0.00019178,2]
[349748747,1737413433691,-500.0,0.00019178,2]
[349748748,1737413433700,-500.0,0.00019178,2]
[349748749,1737413433710,-500.0,0.00019178,2]
[349748750,1737413433719,-500.0,0.00019178,2]
[349748751,1737413433729,-500.0,0.00019178,2]
[349748752,1737413433739,-500.0,0.00019178,2]
[349748753,1737413433748,-500.0,0.00019178,2]
[349748754,1737413433758,-500.0,0.00019178,2]
[349748755,1737413433767,-500.0,0.00019178,2]
[349748756,1737413433777,-507.94226693,0.00019178,2]
[349748757,1737413433787,-500.0,0.00019178,2]
[349748758,1737413433796,-502.38140346,0.00019178,2]
[349748759,1737413433806,-500.0,0.00019178,2]
[349748760,1737413433815,-500.0,0.00019178,2]
[349748761,1737413433824,-503.7279188,0.00019178,2]
[349748762,1737413433833,-500.0,0.00019178,2]
[349748763,1737413433843,-500.0,0.00019178,2]
[349748764,1737413433852,-500.0,0.00019178,2]
[349748765,1737413433861,-500.0,0.00019178,2]
[349748766,1737413433871,-500.0,0.00019178,2]
[349748767,1737413433880,-407.24363129,0.00019178,2]
[349748768,1737413433891,-500.0,0.00019178,2]
[349748769,1737413433900,-500.0,0.00019178,2]
[349748770,1737413433909,-500.0,0.00019178,2]
[349748771,1737413433919,-500.0,0.00019178,2]
[349748772,1737413433928,-500.0,0.00019178,2]
[349748773,1737413433937,-509.44898268,0.00019178,2]
[349748774,1737413433946,-500.0,0.00019178,2]
[349748775,1737413433956,-500.0,0.00019178,2]
[349748776,1737413433965,-505.70375404,0.00019178,2]
[349748777,1737413433975,-500.0,0.00019178,2]
[349748778,1737413433984,-500.0,0.00019178,2]
[349748779,1737413433993,-500.0,0.00019178,2]
[349748780,1737413434003,-266.47882471,0.00019178,2]
[349748781,1737413434013,-500.0,0.00019178,2]
[349748782,1737413434022,-500.0,0.00019178,2]
[349748783,1737413434031,-500.0,0.00019178,2]
[349748784,1737413434040,-500.0,0.00019178,2]
[349748785,1737413434050,-500.0,0.00019178,2]
[349748786,1737413434059,-500.0,0.00019178,2]
[349748787,1737413434068,-500.0,0.00019178,2]
[349748788,1737413434077,-500.0,0.00019178,2]
[349748789,1737413434086,-500.0,0.00019178,2]
[349748790,1737413434096,-500.0,0.00019178,2]
[349748791,1737413434105,-500.0,0.00019178,2]
[349748792,1737413434115,-500.0,0.00019178,2]
[349748793,1737413434124,-500.0,0.00019178,2]
[349748794,1737413434133,-570.53164706,0.00019178,2]
[349748795,1737413434142,-500.0,0.00019178,2]
[349748796,1737413434152,-500.0,0.00019178,2]
[349748797,1737413434161,-516.64763975,0.00019178,2]
[349748798,1737413434172,-500.0,0.00019178,2]
[349748799,1737413434183,-500.0,0.00019178,2]
[349748800,1737413434193,-500.0,0.00019178,2]
[349748801,1737413434202,-500.0,0.00019178,2]
[349748802,1737413434212,-500.0,0.00019178,2]
[349748803,1737413434221,-426.99324081,0.00019178,2]
[349748804,1737413434231,-500.0,0.00019178,2]
[349748805,1737413434240,-500.0,0.00019178,2]
[349748806,1737413434249,-500.0,0.00019178,2]
[349748807,1737413434260,-500.0,0.00019178,2]
[349748808,1737413434269,-500.0,0.00019178,2]
[349748809,1737413434279,-500.0,0.00019178,2]
[349748810,1737413434288,-500.0,0.00019178,2]
[349748811,1737413434297,-500.0,0.00019178,2]
[349748812,1737413434306,-500.0,0.00019178,2]
[349748813,1737413434316,-500.0,0.00019178,2]
[349748814,1737413434325,-494.9922422,0.00019178,2]
[349748815,1737413434335,-500.58910128,0.00019178,2]
[349748816,1737413434344,-500.0,0.00019178,2]
[349748817,1737413434354,-500.0,0.00019178,2]
[349748818,1737413434364,-500.0,0.00019178,2]
[349748819,1737413434373,-500.0,0.00019178,2]
[349748820,1737413434383,-500.0,0.00019178,2]
[349748821,1737413434392,-668.05,0.00019178,2]
[349748822,1737413434402,-500.0,0.00019178,2]
[349748823,1737413434411,-500.0,0.00019178,2]
[349748824,1737413434421,-500.0,0.00019178,2]
[349748825,1737413434430,-500.0,0.00019178,2]
[349748826,1737413434439,-502.6980295,0.00019178,2]
[349748827,1737413434449,-505.78,0.00019178,2]
[349748828,1737413434458,-500.0,0.00019178,2]
[349748829,1737413434467,-500.0,0.00019178,2]
[349748830,1737413434477,-500.0,0.00019178,2]
[349748831,1737413434487,-500.0,0.00019178,2]
[349748832,1737413434496,-500.0,0.00019178,2]
[349748833,1737413434506,-500.0,0.00019178,2]
[349748834,1737413434515,-500.0,0.00019178,2]